[Event "Reykjavik Open 2024"]
[Site "Reykjavik"]
[Date "2024.03.16"]
[Round "2.36"]
[White "Lu, Miaoyi"]
[Black "Baldursson, Rani"]
[Result "1-0"]
[ECO "B22"]
[WhiteElo "2392"]
[BlackElo "1989"]
[Annotator "TA"]
[PlyCount "67"]
[EventDate "2024.03.12"]
[EventCountry "ISL"]
[SourceTitle "playchess.com"]
[Source "ChessBase"]
[SourceQuality "1"]
[TimeControl "40/5400+30:1800+30"]

{[%evp 9,67,37,48,35,54,26,32,32,66,51,76,62,158,158,173,149,324,337,291,129,136,0,318,218,325,321,316,316,302,322,316,308,312,255,247,259,252,244,418,425,424,414,497,178,182,161,302,308,283,284,610,603,895,866,886,884,954,814,1350,1317]} 1. e4 {[%emt 0:00:03]} c5 {[%emt 0:00:18]} 2. Nf3 {[%emt 0:00:04]} g6 {[%emt 0:00:51]} 3. c3 {[%emt 0:00:16][%cal Bc2c3,Bc3d4,Bd4d5][%mdl 32]} d5 {[%emt 0:01:31]} 4. exd5 {[%emt 0:00:02]} Qxd5 {[%emt 0:01:31]} 5. d4 {[%emt 0:00:04]} Nc6 {[%emt 0:02:23]} 6. Be3 {[%emt 0:12:48]} cxd4 {[%emt 0:07:53]} 7. cxd4 {[%emt 0:00:10]} Bg7 {[%emt 0:00:27]} 8. Nc3 {[%emt 0:00:24] White is slightly better.} Qa5 {[%emt 0:02:18]} 9. d5 {[%emt 0:00:17] Inhibits Be6.} Nb8 {[%emt 0:17:36]} (9... Bxc3+ $6 10. bxc3 Nb8 11. Qd2 $16) 10. Rc1 {[%emt 0:08:01]} Bd7 {[%emt 0:04:06]} (10... Nf6 $14) 11. Qb3 $16 {[%emt 0:09:51]} b5 {[%emt 0:11:40]} 12. Bd2 {[%emt 0:02:56][%cal Rc3b5]} Qb6 {[%emt 0:05:43]} (12... b4 $16 {was called for.}) 13. Nxb5 $18 {[%emt 0:06:30]} (13. Bxb5 $6 Nf6 14. Be3 Qd8 $18) 13... Na6 {[%emt 0:02:18] Against Nc7+} 14. Bf4 {[%emt 0:05:10]} (14. d6 $18 {has better winning chances.}) 14... Qa5+ $16 {[%emt 0:07:27]} 15. Bd2 $2 {[%emt 0:03:04] White is much more active.} (15. Nc3 $16 {And now Qb7 would win.} Rc8 16. Ne5) 15... Qb6 $18 {[%emt 0:00:32] White stays focused until the end.} 16. Qa4 {[%emt 0:00:23]} Rb8 {[%emt 0:08:20] [#]} (16... Nc5 $142 17. Qa5 Rc8 18. Qxa7 Qxa7 19. Nxa7 Ra8 20. Rxc5 Rxa7) 17. Qxa6 $3 {[%emt 0:07:20][%mdl 512]} Bxb5 {[%emt 0:01:56]} 18. Rc8+ {[%emt 0:00:02][%cal Bc1c8,Bc8b8,Bb8b6][%mdl 32]} Kd7 {[%emt 0:01:36]} 19. Rxb8 {[%emt 0:00:03]} Bxa6 {[%emt 0:01:31]} 20. Rxb6 {[%emt 0:00:04]} Bxf1 {[%emt 0:00:19]} 21. Rb3 {[%emt 0:03:26]} Bxg2 {[%emt 0:00:43]} 22. Rg1 {[%emt 0:00:06]} Bxf3 {[%emt 0:01:03]} 23. Rxf3 {[%emt 0:00:03]} Bxb2 $2 {[%emt 0:01:19]} (23... Nf6 24. Ra3 Nxd5 25. Rxa7+ Ke6 26. Ra6+ Ke5) 24. Rb3 {[%emt 0:01:35]} Be5 {[%emt 0:04:47]} 25. Rb7+ {[%emt 0:05:45]} Kd6 {[%emt 0:03:47]} 26. Rg5 $2 {[%emt 0:02:14]} (26. Bb4+ Kxd5 27. Rb5+ (27. Rxa7 Bxh2 28. Rh1 Bf4 $18) 27... Ke6 28. Rxe5+ Kxe5 29. Bc3+ Ke6 30. Bxh8) 26... f5 {[%emt 0:02:11]} 27. f4 $36 {[%emt 0:05:00][%mdl 2048] Black is under strong pressure.} Bd4 {[%emt 0:02:15] [#]} (27... Ba1 $142 28. Rg3 (28. Rxa7 Nf6 $18) 28... Nf6) 28. Rg3 $1 {[%emt 0:00:03]} Nf6 {[%emt 0:01:17] [#]} 29. Rd3 $1 {[%emt 0:00:08]} Bc5 {[%emt 0:01:10]} (29... Kc5 30. Ke2 (30. Rxa7 Kc4 $18) 30... Re8 31. Rxa7 e5 32. Rc7+ (32. dxe6 Rxe6+ 33. Kd1 Kc4 $18) 32... Kd6 33. Rc6+ Kxd5 34. Rxf6 e4 35. Rxd4+ Kxd4) 30. Bc3 {[%emt 0:00:07][%csl Gf4][%cal Rc3e5] White is clearly winning.} Bg1 {[%emt 0:03:28]} 31. Be5+ {[%emt 0:00:09]} Kc5 {[%emt 0:00:18]} 32. Rc7+ {[%emt 0:00:41]} Kb6 {[%emt 0:00:38]} 33. Rxe7 {[%emt 0:00:18]} Rf8 {[%emt 0:00:47]} 34. Re6+ {[%emt 0:00:05] Weighted Error Value: White=0.40/Black=0.50.  Loses game:     	---       	Black=1      Missed win:     	White=1     	---        Mistake:       	White=2     	Black=5      Inaccurate:     	White=2     	Black=2      OK:         	White=9     	Black=9      Best:        	White=3     	Black=4      Strong:       	White=2     	---} 1-0

[Event "Reykjavik Open 2024"]
[Site "Reykjavik"]
[Date "2024.03.16"]
[Round "2.37"]
[White "Shivika Rohilla"]
[Black "Thorhallsson, Throstur"]
[Result "0-1"]
[ECO "A13"]
[WhiteElo "2003"]
[BlackElo "2388"]
[Annotator "TA"]
[PlyCount "78"]
[EventDate "2024.03.12"]
[EventCountry "ISL"]
[SourceTitle "playchess.com"]
[Source "ChessBase"]
[SourceQuality "1"]
[TimeControl "40/5400+30:1800+30"]

{[%evp 20,78,4,0,12,0,20,0,18,20,18,14,31,25,25,25,29,23,33,15,22,35,21,16,50,18,33,-50,-31,-51,28,-10,-32,-20,-12,-33,-41,-77,-18,-45,-19,-62,-60,-94,-94,-94,-88,-56,-63,-158,-167,-236,-202,-693,-733,-745,-734,-1070,-1057,-1381,-726]} 1. Nf3 {[%emt 0:06:12]} d5 {[%emt 0:03:07]} 2. c4 {[%emt 0:03:27]} dxc4 {[%emt 0:05:43]} 3. Qa4+ {[%emt 0:01:51]} Nd7 {[%emt 0:00:16]} 4. Qxc4 {[%emt 0:02:35]} e6 {[%emt 0:02:44]} 5. g3 {[%emt 0:07:54]} a6 {[%emt 0:02:55]} 6. Qc2 {[%emt 0:01:41]} b5 {[%emt 0:09:37]} 7. Bg2 {[%emt 0:00:29]} Bb7 {[%emt 0:00:16]} 8. O-O {[%emt 0:00:34]} Ngf6 {[%emt 0:00:54]} 9. a4 {[%emt 0:07:15]} c5 {[%emt 0:02:41]} 10. Nc3 {[%emt 0:03:34]} Qb6 {[%emt 0:09:26]} 11. d3 {[%emt 0:12:15]} Be7 {[%emt 0:02:38]} 12. Qb3 {[%emt 0:06:51][%cal Ra4b5]} b4 {[%emt 0:03:33]} 13. a5 {[%emt 0:01:23]} Qd8 {[%emt 0:04:38] The position is equal.} 14. Nb1 {[%emt 0:00:34][%cal Bc3b1,Bb1d2,Bd2c4,Bc4d6][%mdl 32]} O-O {[%emt 0:03:29]} 15. Nbd2 {[%emt 0:01:23]} Rc8 {[%emt 0:04:15]} 16. Nc4 {[%emt 0:02:44]} Bc6 {[%emt 0:04:03]} 17. Qc2 {[%emt 0:03:19]} Qc7 {[%emt 0:01:52]} 18. Bf4 {[%emt 0:02:54]} Qa7 {[%emt 0:02:19]} 19. Rfe1 {[%emt 0:07:12]} Nd5 {[%emt 0:03:09]} 20. Bd6 {[%emt 0:01:36]} Bxd6 {[%emt 0:05:35]} 21. Nxd6 {[%emt 0:00:10]} Rb8 {[%emt 0:00:34]} 22. e4 {[%emt 0:06:12]} Ne7 {[%emt 0:02:08]} 23. b3 {[%emt 0:02:19]} ({White should play} 23. d4 $14) 23... Qc7 $15 {[%emt 0:01:16]} 24. Nc4 {[%emt 0:00:16]} Nc8 {[%emt 0:02:50]} (24... Bb5 $15) 25. Qd2 {[%emt 0:02:16]} Bb5 {[%emt 0:02:59]} 26. e5 {[%emt 0:02:16]} Bc6 {[%emt 0:01:04]} 27. Qf4 {[%emt 0:01:41]} Ne7 {[%emt 0:01:09]} 28. Qg5 {[%emt 0:03:45]} Ng6 {[%emt 0:03:53]} (28... Nf5 $17) 29. Nh4 {[%emt 0:04:12]} Bxg2 {[%emt 0:04:05]} (29... h6 {simplifies} 30. Qh5 Bxg2 31. Kxg2 Ne7) 30. Kxg2 {[%emt 0:01:13] [#]} Ngxe5 $1 {[%emt 0:03:17]} 31. Nxe5 {[%emt 0:00:19]} (31. Rxe5 f6 32. Qe3 Nxe5 $19) 31... f6 {[%emt 0:00:05]} 32. Qg4 {[%emt 0:00:41]} Nxe5 {[%emt 0:00:28]} 33. Qxe6+ {[%emt 0:00:25]} Qf7 {[%emt 0:03:05]} 34. Qxa6 {[%emt 0:02:23]} (34. Qxf7+ $15 Kxf7 35. Nf5) 34... Qxb3 $17 {[%emt 0:01:59]} 35. Qd6 {[%emt 0:01:34] Against Qd5+} (35. Kg1 $142) 35... Rbd8 {[%emt 0:01:01]} (35... Qxd3 36. Qxc5 Rfc8 37. Qe7 Qd5+ 38. Kg1) (35... Nxd3 36. Re7 Rbd8 37. Qc7 Qd5+ 38. Kg1 $11) 36. Qc7 {[%emt 0:01:52] [#]} (36. Qxc5 $2 Nxd3 37. Qb6 Qd5+ (37... Nxe1+ $2 38. Rxe1 Qd5+ 39. Nf3 $19) 38. Nf3 Nxe1+ 39. Rxe1 Rb8 $19) (36. Reb1 Rxd6 (36... Qxd3 $2 37. Qxc5 b3 38. Qa3 $19) 37. Rxb3 Rxd3 (37... Nxd3 38. Nf5 $17) 38. Rb2) 36... Qd5+ $19 {[%emt 0:00:22] Black is clearly winning.} (36... Rxd3 37. Qxc5 Rc3 38. Qb5 $11) (36... Qxd3 37. Rad1 Rd7 (37... Qxd1 38. Rxd1 Rxd1 39. Qxc5 $14) (37... Rc8 38. Qxe5 fxe5 39. Rxd3 $11) 38. Qxc5 $11) (36... Nxd3 37. Re7 Qd5+ 38. Kg1 $11) 37. Kg1 {[%emt 0:00:26]} g5 {[%emt 0:01:06]} (37... Qxd3 38. Rad1 Qxd1 39. Rxd1 Rxd1+ 40. Kg2 $11) ({Weaker is} 37... Nxd3 38. Re7 Qg5 39. Nf3 $11 (39. a6 b3 $11)) 38. f4 {[%emt 0:00:47]} Rd7 {[%emt 0:01:15]} 39. Qb6 {[%emt 0:00:27]} Nxd3 {[%emt 0:00:45] Weighted Error Value: White=0.79/Black=0.13 (very precise) .  Mistake:       	White=4     	Black=2      Inaccurate:     	White=6     	Black=1      OK:         	White=11    	Black=12     Best:        	---       	Black=3} 0-1

[Event "Reykjavik Open 2024"]
[Site "Reykjavik"]
[Date "2024.03.16"]
[Round "2.38"]
[White "Botez, Alexandra"]
[Black "Sidhant, Mohapatra"]
[Result "0-1"]
[ECO "E54"]
[WhiteElo "1986"]
[BlackElo "2379"]
[Annotator "TA"]
[PlyCount "142"]
[EventDate "2024.03.12"]
[EventCountry "ISL"]
[SourceTitle "playchess.com"]
[Source "ChessBase"]
[SourceQuality "1"]
[TimeControl "40/5400+30:1800+30"]

{[%evp 20,141,0,0,0,0,41,33,38,-64,-53,-65,-70,-86,-73,-81,-77,-63,-62,-69,-69,-69,-68,-54,-36,-59,-59,-68,-61,-104,-102,-105,-105,-125,-107,-110,-126,-135,-91,-102,-95,-109,-94,-107,-96,-97,-104,-137,-141,-176,-180,-195,-186,-180,0,-164,-164,-241,-242,-267,-275,-357,-256,-354,-377,-1139,-397,-349,-228,-485,-450,-475,-652,-641,-588,-719,-800,-672,-928,-859,-823,-868,-849,-572,-508,-981,-957,-955,-902,-981,-974,-974,-974,-974,-720,-921,-724,-724,0,-1713,-1562,-1375,-1502,-29968,-7638,-29972,-29973,-29973,-29974,-29974,-29975,-29975,-29975,-29975,-29976,-29976,-29977,-29980,-29981,-29981,-29982,-29982,-29980,-29977]} 1. d4 {[%emt 0:05:09]} Nf6 {[%emt 0:00:22]} 2. c4 {[%emt 0:00:06]} e6 {[%emt 0:00:17]} 3. Nc3 {[%emt 0:00:17]} Bb4 {[%emt 0:00:28]} 4. e3 {[%emt 0:00:15]} O-O {[%emt 0:00:25]} 5. Bd3 {[%emt 0:00:05]} d5 {[%emt 0:00:40]} 6. Nf3 {[%emt 0:00:08]} c5 {[%emt 0:02:13]} 7. O-O {[%emt 0:00:34]} cxd4 {[%emt 0:02:06]} 8. exd4 {[%emt 0:00:14]} dxc4 {[%emt 0:00:11]} 9. Bxc4 {[%emt 0:00:05]} b6 {[%emt 0:00:13]} 10. Ne5 {[%emt 0:00:07]} Bb7 {[%emt 0:00:21]} 11. Bg5 {[%emt 0:00:08]} h6 {[%emt 0:02:49]} 12. Bh4 {[%emt 0:00:06]} Be7 {[%emt 0:00:05]} (12... Nbd7 $5) 13. Re1 {[%emt 0:07:01]} Nc6 {[%emt 0:01:54] Weiß steht etwas besser.} 14. Nf3 {[%emt 0:09:12]} ({Vorzuziehen ist} 14. Ba6 $1 $14 Qc8 15. Qf3) 14... Rc8 $1 $15 {[%emt 0:01:45][%cal Oc6d4] Und jetzt ...Nxd4! wäre schön.} 15. Bb3 {[%emt 0:06:49]} Na5 {[%emt 0:03:15]} 16. d5 {[%emt 0:10:38]} Nxb3 {[%emt 0:13:16]} 17. axb3 {[%emt 0:03:49]} Nxd5 {[%emt 0:00:09]} 18. Bxe7 {[%emt 0:01:06]} Nxe7 {[%emt 0:00:04]} (18... Qxe7 $2 {zu gefräßig.} 19. Nxd5 Qc5 (19... Bxd5 $2 {geht unter.} 20. Qxd5 Rc2 21. Qe5 $18) 20. Nc3 $18) 19. Rxa7 {[%emt 0:02:58]} Qxd1 {[%emt 0:00:13]} 20. Rxd1 {[%emt 0:00:09]} Bxf3 {[%emt 0:00:08]} 21. gxf3 {[%emt 0:00:12]} Nc6 {[%emt 0:00:04]} 22. Rb7 {[%emt 0:00:59]} Rb8 {[%emt 0:00:55]} 23. Rxb8 {[%emt 0:03:51]} Rxb8 {[%emt 0:00:10][%mdl 4096] Endspiel. KRN-KRN} 24. Na4 {[%emt 0:00:33]} b5 {[%emt 0:03:30]} 25. Nc5 {[%emt 0:02:36]} Rc8 {[%emt 0:01:57]} 26. Kg2 {[%emt 0:09:46]} Nb4 {[%emt 0:03:07]} 27. Ne4 {[%emt 0:02:10]} Nd5 {[%emt 0:01:02] Verhindert Nc3} 28. Rd2 {[%emt 0:06:59]} f5 {[%emt 0:03:15]} 29. Nc3 {[%emt 0:12:30]} Nf4+ {[%emt 0:00:19]} 30. Kg3 {[%emt 0:00:59]} g5 {[%emt 0:00:07]} 31. Ne2 {[%emt 0:01:02]} Ng6 {[%emt 0:00:23] Schwarz steht aktiver.} 32. f4 {[%emt 0:01:44]} Kf7 {[%emt 0:00:05]} 33. fxg5 {[%emt 0:00:29]} hxg5 {[%emt 0:00:04]} 34. f3 {[%emt 0:08:43]} b4 {[%emt 0:00:22]} 35. Kf2 {[%emt 0:01:19]} Rh8 {[%emt 0:00:21]} 36. Kg2 {[%emt 0:00:54]} Rc8 {[%emt 0:01:14]} 37. Kf2 $1 {[%emt 0:00:07]} Kf6 {[%emt 0:00:06]} 38. Kg2 {[%emt 0:02:42]} (38. Ng3 {ist wohl besser.}) 38... Rc6 $19 {[%emt 0:00:37]} 39. Kf2 {[%emt 0:01:07] [#]} e5 $1 {[%emt 0:00:06]} 40. Ke3 {[%emt 0:00:54]} Ke6 {[%emt 0:00:21] Droht ...Nh4 und aus.} 41. Rd8 {[%emt 0:05:41]} Rc2 {[%emt 0:02:57]} 42. Rd2 $2 {[%emt 0:01:42]} (42. Ra8) 42... Rc8 $2 {[%emt 0:00:00]} (42... f4+ 43. Kd3 Rc8) 43. Kf2 {[%emt 0:05:25]} Ne7 {[%emt 0:00:00] ...f4 wäre nun fies.} 44. Kg3 $2 {[%emt 0:02:06]} (44. Ng3) 44... Nd5 {[%emt 0:00:00]} 45. h3 {[%emt 0:04:01]} Ne3 {[%emt 0:01:21]} 46. Kf2 {[%emt 0:00:35] Pariert Nf1.} f4 {[%emt 0:00:09]} 47. Ng3 {[%emt 0:02:34]} fxg3+ {[%emt 0:01:34]} 48. Kxe3 {[%emt 0:00:09] KR-KR} Rh8 {[%emt 0:00:03]} 49. Rg2 {[%emt 0:00:53]} Rxh3 {[%emt 0:00:04]} 50. Ke4 {[%emt 0:00:17]} Kf6 {[%emt 0:00:07]} 51. Rg1 {[%emt 0:01:41]} Rh4+ {[%emt 0:02:47]} 52. Ke3 {[%emt 0:00:21]} (52. Kd3 $142 Kf5 (52... Rh3 $2 53. Ke4 $19) 53. Rxg3) 52... Rh2 {[%emt 0:01:09]} 53. Rxg3 {[%emt 0:00:20]} Rxb2 {[%emt 0:00:04]} 54. Ke4 {[%emt 0:00:20]} Rxb3 {[%emt 0:00:07] ...Rc3 ist eine echte Drohung.} 55. Rg1 {[%emt 0:05:01]} Rc3 {[%emt 0:00:19] [#] Weiss muss nun ...b3 beachten.} 56. Ra1 {[%emt 0:02:24]} Rc4+ {[%emt 0:00:08]} 57. Kd3 {[%emt 0:00:29]} Rf4 {[%emt 0:00:13]} 58. Ke3 {[%emt 0:00:08]} Rc4 {[%emt 0:00:15]} (58... Kf5 $142 59. Ra8 g4 60. fxg4+ Rxg4 (60... Kxg4 $2 61. Re8 $19)) 59. Kd3 $1 {[%emt 0:00:05]} Rd4+ {[%emt 0:00:09]} 60. Ke3 {[%emt 0:00:05]} Rd6 {[%emt 0:00:27]} 61. Ke4 {[%emt 0:00:26]} b3 {[%emt 0:00:10] ( -> ...b2)} 62. Rb1 {[%emt 0:00:30]} Rb6 {[%emt 0:00:06] Schwarz setzt Matt.} 63. Rb2 {[%emt 0:00:41]} Ke6 {[%emt 0:00:04]} 64. Kd3 {[%emt 0:01:18]} Kf5 {[%emt 0:00:27]} 65. Ke3 {[%emt 0:00:18]} Rb8 {[%emt 0:00:05]} 66. Ke2 {[%emt 0:01:11]} Kf4 {[%emt 0:00:08]} 67. Kf2 {[%emt 0:00:51]} Rb7 {[%emt 0:00:06]} 68. Kg2 {[%emt 0:01:08]} e4 {[%emt 0:00:37]} 69. fxe4 {[%emt 0:00:16]} Kxe4 {[%emt 0:00:01]} 70. Kg3 {[%emt 0:00:06]} Kd3 {[%emt 0:00:04]} 71. Kg4 {[%emt 0:00:08]} Kc3 {[%emt 0:00:13] Gewichteter Fehlerwert: Weiß=0.39/Schwarz=0.33.  Fehler:       	Weiß=4     	Schwarz=1     Ungenau:       	Weiß=3     	Schwarz=2     OK:         	Weiß=12    	Schwarz=20    Bester:       	Weiß=2     	Schwarz=1     Stark:        	Weiß=1     	Schwarz=2} 0-1

[Event "Reykjavik Open 2024"]
[Site "Reykjavik"]
[Date "2024.03.16"]
[Round "2.39"]
[White "Alic, Miran"]
[Black "Botez, Andrea"]
[Result "1-0"]
[ECO "A49"]
[WhiteElo "2033"]
[BlackElo "1825"]
[Annotator "RC"]
[PlyCount "91"]
[EventDate "2024.03.12"]
[EventCountry "ISL"]
[SourceTitle "playchess.com"]
[Source "ChessBase"]
[SourceQuality "1"]
[TimeControl "40/5400+30:1800+30"]

1. d4 {[%emt 0:02:51]} Nf6 {[%emt 0:03:16]} 2. Nf3 {[%emt 0:00:04]} g6 {[%emt 0:00:04]} 3. g3 {[%emt 0:00:04]} Bg7 {[%emt 0:00:06]} 4. Bg2 {[%emt 0:00:06]} d6 {[%emt 0:00:04]} 5. O-O {[%emt 0:00:14]} O-O {[%emt 0:00:24]} 6. b3 {[%emt 0:00:03]} c6 {[%emt 0:01:20]} 7. Bb2 {[%emt 0:00:07]} Nbd7 {[%emt 0:00:05]} 8. Re1 {[%emt 0:00:22]} Re8 {[%emt 0:03:38]} 9. e4 {[%emt 0:00:06]} Qc7 {[%emt 0:14:35]} 10. e5 {[%emt 0:15:04]} dxe5 {[%emt 0:04:11]} 11. dxe5 {[%emt 0:00:05]} Ng4 {[%emt 0:10:13]} 12. Qe2 {[%emt 0:01:13]} Nc5 {[%emt 0:03:48]} 13. Qc4 {[%emt 0:35:28]} b6 {[%emt 0:08:12]} 14. Ng5 {[%emt 0:04:09]} Nh6 {[%emt 0:05:45]} 15. e6 {[%emt 0:21:55]} f6 {[%emt 0:01:07]} 16. Nf7 {[%emt 0:03:05]} Ba6 {[%emt 0:03:19]} 17. Nxh6+ {[%emt 0:03:01]} Bxh6 {[%emt 0:00:09]} 18. Qg4 {[%emt 0:02:48]} Rad8 {[%emt 0:02:31]} 19. f4 {[%emt 0:02:46]} f5 {[%emt 0:06:57]} 20. Qf3 {[%emt 0:00:31]} Ne4 {[%emt 0:00:14]} 21. Rxe4 {[%emt 0:02:38]} Bg7 {[%emt 0:02:19]} 22. Re5 {[%emt 0:01:28]} Qd6 {[%emt 0:04:12]} 23. Na3 {[%emt 0:00:40]} Bxe5 {[%emt 0:09:24]} 24. fxe5 {[%emt 0:00:12]} Qd2 {[%emt 0:10:22]} 25. Qf2 {[%emt 0:00:53]} Qxf2+ {[%emt 0:02:28]} 26. Kxf2 {[%emt 0:00:02]} Rd2+ {[%emt 0:00:05]} 27. Kg1 {[%emt 0:00:11]} Red8 {[%emt 0:00:46]} 28. Bxc6 {[%emt 0:01:00]} b5 {[%emt 0:04:16]} 29. b4 {[%emt 0:01:02]} Bc8 {[%emt 0:00:24]} 30. Bf3 {[%emt 0:01:19]} Bxe6 {[%emt 0:00:25]} 31. Bc3 {[%emt 0:00:34]} R2d7 {[%emt 0:00:06]} 32. Nxb5 {[%emt 0:01:02]} a6 {[%emt 0:00:45]} 33. Na3 {[%emt 0:00:52]} g5 {[%emt 0:00:33]} 34. h3 {[%emt 0:00:26]} g4 {[%emt 0:00:30]} 35. hxg4 {[%emt 0:00:08]} fxg4 {[%emt 0:00:02]} 36. Be4 {[%emt 0:00:42]} Rd1+ {[%emt 0:00:14]} 37. Rxd1 {[%emt 0:00:06]} Rxd1+ {[%emt 0:00:01]} 38. Kf2 {[%emt 0:00:23]} Bxa2 {[%emt 0:00:07]} 39. Bb7 {[%emt 0:01:00]} e6 {[%emt 0:02:02]} 40. Bxa6 {[%emt 0:00:39]} Rh1 {[%emt 0:00:51]} 41. Bb7 {[%emt 0:31:00]} Rd1 {[%emt 0:30:38]} 42. b5 {[%emt 0:00:00]} Kf7 {[%emt 0:00:00]} 43. b6 {[%emt 0:00:00]} Rd8 {[%emt 0:00:00]} 44. Be4 {[%emt 0:00:00]} Bd5 {[%emt 0:00:00]} 45. Bxd5 {[%emt 0:00:00]} exd5 {[%emt 0:00:00]} 46. Bd4 {[%emt 0:00:00]} 1-0

[Event "Reykjavik Open 2024"]
[Site "Reykjavik"]
[Date "2024.03.16"]
[Round "2.40"]
[White "Arun, Nitish"]
[Black "Saine, Zachary"]
[Result "1/2-1/2"]
[ECO "D27"]
[WhiteElo "1808"]
[BlackElo "2010"]
[Annotator "NA RC"]
[PlyCount "119"]
[EventDate "2024.03.12"]
[EventCountry "ISL"]
[SourceTitle "playchess.com"]
[Source "ChessBase"]
[SourceQuality "1"]
[TimeControl "40/5400+30:1800+30"]

1. d4 {[%emt 0:00:03]} d5 {[%emt 0:00:18]} 2. c4 {[%emt 0:00:06]} e6 {[%emt 0:00:21]} 3. Nc3 {[%emt 0:00:07]} c5 {[%emt 0:00:07]} 4. e3 {[%emt 0:06:24]} dxc4 {[%emt 0:10:16]} 5. Bxc4 {[%emt 0:00:48]} a6 {[%emt 0:01:45]} 6. a4 {[%emt 0:06:22]} Nc6 {[%emt 0:00:42]} 7. Nf3 {[%emt 0:03:39]} Nf6 {[%emt 0:01:54]} 8. O-O {[%emt 0:03:28]} b6 {[%emt 0:04:26] D27: Queen's Gambit Accepted: Classical main line: 7 e4!? and 7 a4.} 9. d5 {[%emt 0:10:33]} Na5 {[%emt 0:01:57]} 10. Ba2 {[%emt 0:00:08]} exd5 {[%emt 0:02:02]} 11. Nxd5 {[%emt 0:02:18]} Bb7 {[%emt 0:18:00]} 12. e4 {[%emt 0:03:08]} Be7 {[%emt 0:02:56]} 13. Bf4 {[%emt 0:02:11]} Nxd5 {[%emt 0:02:34]} 14. exd5 {[%emt 0:01:26]} O-O {[%emt 0:00:23]} 15. d6 {[%emt 0:03:49]} Bf6 {[%emt 0:00:05]} 16. Ne5 {[%emt 0:03:23]} Bxe5 {[%emt 0:04:34]} 17. Bxe5 {[%emt 0:01:18]} Nc6 {[%emt 0:01:28]} 18. Bc3 {[%emt 0:06:43]} Qh4 {[%emt 0:04:43]} 19. Qf3 {[%emt 0:04:59]} Rad8 {[%emt 0:05:08]} 20. Rfd1 {[%emt 0:02:20]} Ba8 {[%emt 0:04:56]} 21. Qg3 {[%emt 0:02:25]} Qxg3 {[%emt 0:02:30]} 22. fxg3 {[%emt 0:00:08]} Rd7 {[%emt 0:02:38]} 23. Bc4 {[%emt 0:08:28]} Rfd8 {[%emt 0:02:29]} 24. Rf1 {[%emt 0:02:05]} b5 {[%emt 0:04:33]} 25. axb5 {[%emt 0:01:38]} axb5 {[%emt 0:00:05]} 26. Bxb5 {[%emt 0:01:04]} Rxd6 {[%emt 0:00:43]} 27. Bc4 {[%emt 0:01:32]} R6d7 {[%emt 0:03:16]} 28. Rf5 {[%emt 0:04:03]} Nd4 {[%emt 0:01:41]} 29. Rf2 {[%emt 0:04:32]} Bd5 {[%emt 0:01:09]} 30. Bxd5 {[%emt 0:00:54]} Rxd5 {[%emt 0:00:06]} 31. Bxd4 {[%emt 0:00:19]} cxd4 {[%emt 0:03:28]} 32. Rd2 {[%emt 0:00:08]} f6 {[%emt 0:00:22]} 33. Rad1 {[%emt 0:00:19]} Kf7 {[%emt 0:00:22]} 34. Kf2 {[%emt 0:00:05]} Ke6 {[%emt 0:00:44]} 35. Kf3 {[%emt 0:00:44]} Rf5+ {[%emt 0:03:27]} 36. Ke4 {[%emt 0:00:53]} Re5+ {[%emt 0:00:12]} 37. Kf3 {[%emt 0:00:39]} Re3+ {[%emt 0:00:44]} 38. Kf2 {[%emt 0:00:45]} Ke5 {[%emt 0:00:22]} 39. Re2 {[%emt 0:01:39]} Rxe2+ {[%emt 0:01:55]} 40. Kxe2 {[%emt 0:00:05]} Rb8 {[%emt 0:00:12]} 41. Rb1 {[%emt 0:31:26]} Rb3 {[%emt 0:33:38]} 42. Kd2 {[%emt 0:00:27]} d3 {[%emt 0:01:55]} 43. Ke3 {[%emt 0:01:59]} f5 {[%emt 0:00:53]} 44. Re1 {[%emt 0:04:58]} Kd5 {[%emt 0:00:46]} 45. Rd1 {[%emt 0:00:10]} Ke5 {[%emt 0:02:42]} 46. Rxd3 {[%emt 0:00:59]} Rxb2 {[%emt 0:00:05]} 47. Rd2 {[%emt 0:03:03]} Rxd2 {[%emt 0:00:00]} 48. Kxd2 {[%emt 0:00:00]} Kd4 {[%emt 0:00:00]} 49. Ke2 {[%emt 0:00:00]} Ke4 {[%emt 0:00:00]} 50. Kf2 {[%emt 0:00:00]} Kd3 {[%emt 0:00:00]} 51. Kf3 {[%emt 0:00:00]} g5 {[%emt 0:00:00]} 52. h3 {[%emt 0:00:00]} (52. g4 $5 f4 $8 53. g3 fxg3 54. Kxg3 $11) 52... Kd4 {[%emt 0:01:01]} 53. Ke2 {[%emt 0:00:00]} Ke4 {[%emt 0:00:39]} 54. Kf2 $11 {[%emt 0:00:00]} g4 {[%emt 0:00:42]} 55. hxg4 {[%emt 0:00:00]} fxg4 {[%emt 0:00:05]} 56. Ke2 {[%emt 0:00:00]} h6 {[%emt 0:00:51]} 57. Kd2 {[%emt 0:00:00]} Kd4 {[%emt 0:01:09]} 58. Ke2 {[%emt 0:00:00]} Ke4 {[%emt 0:01:13]} 59. Kd2 {[%emt 0:00:00]} Kd4 {[%emt 0:01:12]} 60. Ke2 {[%emt 0:00:00]} 1/2-1/2